[Event "FIDE Women World Blitz 2021"]
[Site "Warsaw"]
[Date "2021.12.30"]
[Round "13.29"]
[White "Danielian, Elina"]
[Black "Smirnova, Ekaterina"]
[Result "1-0"]
[ECO "A11"]
[WhiteElo "2450"]
[BlackElo "2196"]
[Annotator "ChessBase"]
[PlyCount "129"]
[EventDate "2021.12.29"]
[EventType "swiss"]
[EventCountry "POL"]
[Tiebreak "Cut1 Buchholz"]
[SourceTitle "playchess.com"]
[Source "ChessBase"]
[SourceQuality "1"]
[TimeControl "180+2"]

1. Nf3 {[%emt 0:00:04]} Nf6 {[%emt 0:00:01]} 2. c4 {[%emt 0:00:01]} c6 {
[%emt 0:00:00]} 3. g3 {[%emt 0:00:07]} d5 {[%emt 0:00:02]} 4. Bg2 {[%emt 0:00:
02]} Bf5 {[%emt 0:00:01]} 5. Qb3 {[%emt 0:00:22]} Qb6 {[%emt 0:00:16]} 6. d3 {
[%emt 0:00:07]} e6 {[%emt 0:00:06]} 7. Nc3 {[%emt 0:00:37]} Nbd7 {[%emt 0:00:
07]} 8. Be3 {[%emt 0:00:21]} Qxb3 {[%emt 0:00:43]} 9. axb3 {[%emt 0:00:02]} Bc5
{[%emt 0:00:03]} 10. Bxc5 {[%emt 0:00:14]} Nxc5 {[%emt 0:00:01]} 11. b4 {
[%emt 0:00:02]} Ncd7 {[%emt 0:00:07]} 12. O-O {[%emt 0:00:07]} Ke7 {[%emt 0:00:
13]} 13. b5 {[%emt 0:00:06]} cxb5 {[%emt 0:00:15]} 14. Nxb5 {[%emt 0:00:05]} a6
{[%emt 0:00:04]} 15. Nc3 {[%emt 0:00:04]} dxc4 {[%emt 0:00:58]} 16. dxc4 {
[%emt 0:00:01]} Nc5 {[%emt 0:00:09]} 17. Nd4 {[%emt 0:00:10]} Nfe4 {[%emt 0:00:
05]} 18. Nxf5+ {[%emt 0:00:14]} exf5 {[%emt 0:00:01]} 19. Nd5+ {[%emt 0:00:02]}
Kd6 {[%emt 0:00:13]} 20. Rfd1 {[%emt 0:00:12]} Kc6 {[%emt 0:00:06]} 21. b4 {
[%emt 0:00:08]} Ne6 {[%emt 0:00:04]} 22. g4 {[%emt 0:00:03]} g6 {[%emt 0:00:01]
} 23. gxf5 gxf5 {[%emt 0:00:01]} 24. Ne7+ {[%emt 0:00:10]} Kc7 {[%emt 0:00:01]}
25. Nxf5 {[%emt 0:00:02]} Nf6 {[%emt 0:00:00]} 26. e3 {[%emt 0:00:05]} Rhg8 {
[%emt 0:00:01]} 27. Kf1 {[%emt 0:00:02]} Rad8 {[%emt 0:00:01]} 28. Ne7 {
[%emt 0:00:03]} Rxd1+ {[%emt 0:00:04]} 29. Rxd1 Rd8 30. Rxd8 {[%emt 0:00:03]}
Nxd8 {[%emt 0:00:01]} 31. Nd5+ {[%emt 0:00:04]} Nxd5 {[%emt 0:00:01]} 32. Bxd5
{[%emt 0:00:01]} f6 {[%emt 0:00:03]} 33. Ke2 {[%emt 0:00:03]} Kd6 {[%emt 0:00:
01]} 34. Kd3 {[%emt 0:00:03]} b5 {[%emt 0:00:00]} 35. Kd4 {[%emt 0:00:04]} bxc4
{[%emt 0:00:02]} 36. Bxc4 {[%emt 0:00:03]} Nc6+ {[%emt 0:00:01]} 37. Kc3 {
[%emt 0:00:02]} a5 {[%emt 0:00:03]} 38. bxa5 {[%emt 0:00:01]} Nxa5 {[%emt 0:00:
01]} 39. Bb5 {[%emt 0:00:03]} Nb7 {[%emt 0:00:02]} 40. Kd4 {[%emt 0:00:01]} Ke6
{[%emt 0:00:02]} 41. Bd3 {[%emt 0:00:03]} h6 {[%emt 0:00:01]} 42. Ke4 {[%emt 0:
00:03]} Nc5+ {[%emt 0:00:01]} 43. Kd4 {[%emt 0:00:01]} Nd7 {[%emt 0:00:02]} 44.
Bf1 {[%emt 0:00:03]} Ne5 {[%emt 0:00:01]} 45. Bh3+ {[%emt 0:00:01]} Ke7 {
[%emt 0:00:00]} 46. Ke4 {[%emt 0:00:02]} Kf7 {[%emt 0:00:01]} 47. Bf1 {[%emt 0:
00:02]} Kg6 {[%emt 0:00:02]} 48. Kf4 {[%emt 0:00:02]} Nd7 {[%emt 0:00:01]} 49.
Bd3+ {[%emt 0:00:01]} Kg7 {[%emt 0:00:01]} 50. h4 {[%emt 0:00:02]} Ne5 {
[%emt 0:00:01]} 51. Bc2 {[%emt 0:00:03]} Nd7 {[%emt 0:00:01]} 52. Kf5 {[%emt 0:
00:03]} Nc5 {[%emt 0:00:02]} 53. f4 {[%emt 0:00:04]} Nd7 {[%emt 0:00:01]} 54.
e4 {[%emt 0:00:03]} Kf7 {[%emt 0:00:06]} 55. Bb3+ {[%emt 0:00:00]} Kg7 {
[%emt 0:00:01]} 56. Bd5 {[%emt 0:00:04]} Nb6 {[%emt 0:00:02]} 57. Bc6 {[%emt 0:
00:02]} Nc4 {[%emt 0:00:01]} 58. Bd5 {[%emt 0:00:03]} Nd6+ {[%emt 0:00:02]} 59.
Ke6 {[%emt 0:00:03]} Nb5 {[%emt 0:00:03]} 60. e5 {[%emt 0:00:02]} fxe5 {
[%emt 0:00:01]} 61. fxe5 {[%emt 0:00:01]} Kf8 {[%emt 0:00:04]} 62. Kf6 {
[%emt 0:00:02]} Nd4 {[%emt 0:00:01]} 63. Kg6 {[%emt 0:00:03]} Ke7 {[%emt 0:00:
05]} 64. Kxh6 {[%emt 0:00:01]} Nf3 {[%emt 0:00:02]} 65. Bxf3 {[%emt 0:00:02]}
1-0

[Event "FIDE Women World Blitz 2021"]
[Site "Warsaw"]
[Date "2021.12.30"]
[Round "13.30"]
[White "Michna, Marta"]
[Black "Serikbay, Assel"]
[Result "0-1"]
[ECO "D02"]
[WhiteElo "2312"]
[BlackElo "2237"]
[Annotator "NA"]
[PlyCount "54"]
[EventDate "2021.12.29"]
[EventType "swiss"]
[EventCountry "POL"]
[Tiebreak "Cut1 Buchholz"]
[SourceTitle "playchess.com"]
[Source "ChessBase"]
[SourceQuality "1"]
[TimeControl "180+2"]

1. d4 {[%emt 0:00:01]} d5 {[%emt 0:00:01]} 2. Nf3 {[%emt 0:00:01]} Nf6 {
[%emt 0:00:01]} 3. Bf4 {[%emt 0:00:01]} c5 {[%emt 0:00:01]} 4. e3 {[%emt 0:00:
02]} Nc6 {[%emt 0:00:02]} 5. c3 {[%emt 0:00:00]} Qb6 {[%emt 0:00:02]} 6. Qb3 {
[%emt 0:00:02]} c4 {[%emt 0:00:01]} 7. Qc2 {[%emt 0:00:03]} Bf5 {[%emt 0:00:03]
} 8. Qc1 {[%emt 0:00:01]} e6 {[%emt 0:00:01]} 9. h3 {[%emt 0:00:03]} Be7 {
[%emt 0:00:03]} 10. Nh4 {[%emt 0:00:11]} Bg6 {[%emt 0:00:04]} 11. Nxg6 {
[%emt 0:00:02]} hxg6 {[%emt 0:00:01]} 12. Nd2 {[%emt 0:00:02]} Qd8 {[%emt 0:00:
49]} 13. Qc2 {[%emt 0:00:19]} b5 {[%emt 0:00:02]} 14. e4 {[%emt 0:00:02]} b4 {
[%emt 0:00:14]} 15. Be2 {[%emt 0:00:10]} Nh5 {[%emt 0:00:26]} 16. Bh2 {[%emt 0:
00:03]} Bg5 {[%emt 0:00:11]} 17. O-O {[%emt 0:00:46]} Nf4 {[%emt 0:00:01]} 18.
Bf3 {[%emt 0:00:26]} O-O {[%emt 0:00:16]} 19. exd5 {[%emt 0:00:08]} exd5 {
[%emt 0:00:05]} 20. Qa4 {[%emt 0:00:56]} Rc8 {[%emt 0:00:16]} 21. Bxf4 {
[%emt 0:00:02]} Bxf4 {[%emt 0:00:00]} 22. Rad1 {[%emt 0:00:11]} Qd6 {[%emt 0:
00:06]} 23. Rfe1 {[%emt 0:00:06]} Rfe8 {[%emt 0:00:04]} 24. Rxe8+ {[%emt 0:00:
03]} Rxe8 {[%emt 0:00:01]} 25. Nxc4 {[%emt 0:00:06]} dxc4 {[%emt 0:00:03]} 26.
Qxc6 {[%emt 0:00:03]} Qxc6 {[%emt 0:00:09]} 27. Bxc6 {[%emt 0:00:01]} Re2 {
[%emt 0:00:33]} 0-1

[Event "FIDE Women World Blitz 2021"]
[Site "Warsaw"]
[Date "2021.12.30"]
[Round "13.31"]
[White "Semenova, Elena"]
[Black "Strutinskaia, Galina"]
[Result "1-0"]
[ECO "C09"]
[WhiteElo "2233"]
[BlackElo "2188"]
[Annotator "NA"]
[PlyCount "65"]
[EventDate "2021.12.29"]
[EventType "swiss"]
[EventCountry "POL"]
[Tiebreak "Cut1 Buchholz"]
[SourceTitle "playchess.com"]
[Source "ChessBase"]
[SourceQuality "1"]
[TimeControl "180+2"]

1. e4 {[%emt 0:00:01]} c5 {[%emt 0:00:00]} 2. Nf3 {[%emt 0:00:01]} e6 {[%emt 0:
00:03]} 3. c3 {[%emt 0:00:01]} d5 {[%emt 0:00:05]} 4. exd5 {[%emt 0:00:01]}
exd5 {[%emt 0:00:03]} 5. d4 {[%emt 0:00:01]} Nc6 {[%emt 0:00:03]} 6. Bb5 {
[%emt 0:00:03]} Bd6 {[%emt 0:00:05]} 7. O-O {[%emt 0:00:08]} Nge7 {[%emt 0:00:
01]} 8. dxc5 {[%emt 0:00:08]} Bxc5 {[%emt 0:00:02]} 9. Nbd2 {[%emt 0:00:01]}
O-O {[%emt 0:00:16]} 10. h3 {[%emt 0:00:02]} Bf5 {[%emt 0:00:08]} 11. Nb3 {
[%emt 0:00:01]} Bd6 {[%emt 0:00:02]} 12. Nbd4 {[%emt 0:00:03]} Bg6 {[%emt 0:00:
05]} 13. Bd3 {[%emt 0:00:10]} a6 {[%emt 0:00:09]} 14. Re1 {[%emt 0:00:01]} Rc8
{[%emt 0:00:08]} 15. Bg5 {[%emt 0:00:23]} Nxd4 {[%emt 0:00:12]} 16. Nxd4 {
[%emt 0:00:05]} Rc7 {[%emt 0:00:05]} 17. Qf3 {[%emt 0:00:14]} Re8 {[%emt 0:00:
11]} 18. Re2 {[%emt 0:00:11]} Qd7 {[%emt 0:00:27]} 19. Rae1 {[%emt 0:00:03]}
Bxd3 {[%emt 0:00:09]} 20. Qxd3 {[%emt 0:00:02]} Rcc8 {[%emt 0:00:11]} 21. Bxe7
{[%emt 0:00:33]} Rxe7 {[%emt 0:00:02]} 22. Rxe7 {[%emt 0:00:24]} Bxe7 {[%emt 0:
00:02]} 23. Qf5 {[%emt 0:00:03]} Qxf5 {[%emt 0:00:05]} 24. Nxf5 {[%emt 0:00:01]
} Bf8 {[%emt 0:00:01]} 25. Rd1 {[%emt 0:00:09]} Rc5 {[%emt 0:00:07]} 26. Ne3 {
[%emt 0:00:07]} Ra5 {[%emt 0:00:09]} 27. a3 {[%emt 0:00:07]} Rb5 {[%emt 0:00:
02]} 28. b4 {[%emt 0:00:03]} a5 {[%emt 0:00:02]} 29. Nxd5 {[%emt 0:00:08]} axb4
{[%emt 0:00:06]} 30. axb4 {[%emt 0:00:00]} b6 {[%emt 0:00:15]} 31. c4 {[%emt 0:
00:03]} Rxb4 {[%emt 0:00:01]} 32. Nxb4 {[%emt 0:00:02]} Bxb4 {[%emt 0:00:01]}
33. Rd8+ {[%emt 0:00:01]} 1-0

[Event "FIDE Women World Blitz 2021"]
[Site "Warsaw"]
[Date "2021.12.30"]
[Round "13.32"]
[White "Kurmangaliyeva, Liya"]
[Black "Paramzina, Anastasya"]
[Result "0-1"]
[ECO "D87"]
[WhiteElo "2222"]
[BlackElo "2260"]
[Annotator "NA"]
[PlyCount "70"]
[EventDate "2021.12.29"]
[EventType "swiss"]
[EventCountry "POL"]
[Tiebreak "Cut1 Buchholz"]
[SourceTitle "playchess.com"]
[Source "ChessBase"]
[SourceQuality "1"]
[TimeControl "180+2"]

1. d4 {[%emt 0:00:04]} Nf6 {[%emt 0:00:01]} 2. c4 {[%emt 0:00:01]} g6 {[%emt 0:
00:01]} 3. Nc3 {[%emt 0:00:04]} d5 {[%emt 0:00:00]} 4. cxd5 {[%emt 0:00:03]}
Nxd5 {[%emt 0:00:02]} 5. e4 {[%emt 0:00:03]} Nxc3 {[%emt 0:00:01]} 6. bxc3 {
[%emt 0:00:01]} Bg7 {[%emt 0:00:01]} 7. Bc4 {[%emt 0:00:03]} c5 {[%emt 0:00:02]
} 8. Ne2 {[%emt 0:00:02]} Nc6 {[%emt 0:00:04]} 9. Be3 {[%emt 0:00:02]} O-O {
[%emt 0:00:02]} 10. O-O {[%emt 0:00:03]} b6 {[%emt 0:00:04]} 11. Qd2 {[%emt 0:
00:15]} e6 {[%emt 0:00:17]} 12. Rfd1 {[%emt 0:00:17]} cxd4 {[%emt 0:00:04]} 13.
cxd4 {[%emt 0:00:03]} Bb7 {[%emt 0:00:01]} 14. Rac1 {[%emt 0:00:13]} Rc8 {
[%emt 0:00:02]} 15. Bb5 {[%emt 0:00:03]} a6 {[%emt 0:00:22]} 16. Bd3 {[%emt 0:
00:02]} Qd6 {[%emt 0:00:19]} 17. Qb2 {[%emt 0:00:24]} Qb4 {[%emt 0:00:12]} 18.
Qxb4 {[%emt 0:00:20]} Nxb4 {[%emt 0:00:02]} 19. Bb1 {[%emt 0:00:01]} Rxc1 {
[%emt 0:00:10]} 20. Rxc1 {[%emt 0:00:01]} Rc8 {[%emt 0:00:01]} 21. Rxc8+ {
[%emt 0:00:13]} Bxc8 {[%emt 0:00:02]} 22. a3 {[%emt 0:00:01]} Nc6 {[%emt 0:00:
06]} 23. d5 {[%emt 0:00:06]} exd5 {[%emt 0:00:02]} 24. exd5 {[%emt 0:00:02]}
Ne7 {[%emt 0:00:04]} 25. Be4 {[%emt 0:00:21]} b5 {[%emt 0:00:50]} 26. Bc5 {
[%emt 0:00:02]} f5 {[%emt 0:00:25]} 27. Bf3 {[%emt 0:00:12]} Kf7 {[%emt 0:00:
01]} 28. d6 {[%emt 0:00:17]} Ng8 {[%emt 0:00:00]} 29. Bc6 {[%emt 0:00:01]} Nf6
{[%emt 0:00:06]} 30. Nf4 {[%emt 0:00:16]} Bd7 {[%emt 0:00:08]} 31. Bb7 {
[%emt 0:00:01]} a5 {[%emt 0:00:00]} 32. Nd3 {[%emt 0:00:01]} Ne4 {[%emt 0:00:
03]} 33. Bd5+ {[%emt 0:00:07]} Ke8 {[%emt 0:00:16]} 34. f3 {[%emt 0:00:10]}
Nxc5 {[%emt 0:00:01]} 35. Nxc5 {[%emt 0:00:08]} Bd4+ {[%emt 0:00:01]} 0-1

[Event "FIDE Women World Blitz 2021"]
[Site "Warsaw"]
[Date "2021.12.30"]
[Round "13.33"]
[White "Wikar, Martyna"]
[Black "Zawadzka, Jolanta"]
[Result "0-1"]
[ECO "B47"]
[WhiteElo "1899"]
[BlackElo "2429"]
[Annotator "NA"]
[PlyCount "52"]
[EventDate "2021.12.29"]
[EventType "swiss"]
[EventCountry "POL"]
[Tiebreak "Cut1 Buchholz"]
[SourceTitle "playchess.com"]
[Source "ChessBase"]
[SourceQuality "1"]
[TimeControl "180+2"]

1. e4 {[%emt 0:00:02]} c5 {[%emt 0:00:01]} 2. Nf3 {[%emt 0:00:01]} e6 {[%emt 0:
00:01]} 3. d4 {[%emt 0:00:04]} cxd4 {[%emt 0:00:01]} 4. Nxd4 {[%emt 0:00:01]}
Nc6 {[%emt 0:00:01]} 5. Nc3 {[%emt 0:00:21]} Qc7 {[%emt 0:00:01]} 6. f4 {
[%emt 0:00:03]} Nxd4 {[%emt 0:00:08]} 7. Qxd4 {[%emt 0:00:01]} a6 {[%emt 0:00:
01]} 8. Be2 {[%emt 0:00:08]} b5 {[%emt 0:00:01]} 9. a3 {[%emt 0:00:09]} Bb7 {
[%emt 0:00:01]} 10. Be3 {[%emt 0:00:03]} Rc8 {[%emt 0:00:04]} 11. Rd1 {[%emt 0:
00:19]} Nf6 {[%emt 0:00:08]} 12. O-O {[%emt 0:00:19]} h5 {[%emt 0:00:11]} 13.
Bf3 {[%emt 0:00:06]} Ng4 {[%emt 0:00:08]} 14. Bxg4 {[%emt 0:00:10]} hxg4 {
[%emt 0:00:01]} 15. Qb6 {[%emt 0:00:45]} Qxb6 {[%emt 0:00:18]} 16. Bxb6 {
[%emt 0:00:02]} Bxa3 {[%emt 0:00:15]} 17. bxa3 {[%emt 0:00:29]} Rxc3 {[%emt 0:
00:02]} 18. Rd3 {[%emt 0:00:06]} Rxc2 {[%emt 0:00:11]} 19. Rfd1 {[%emt 0:00:20]
} Bxe4 {[%emt 0:00:35]} 20. Rg3 {[%emt 0:00:03]} f5 {[%emt 0:00:13]} 21. Bd4 {
[%emt 0:00:02]} Kf7 {[%emt 0:00:04]} 22. h3 {[%emt 0:00:05]} Rh4 {[%emt 0:00:
21]} 23. Bf2 {[%emt 0:00:01]} gxh3 {[%emt 0:00:10]} 24. Rxd7+ {[%emt 0:00:02]}
Ke8 {[%emt 0:00:10]} 25. Rgxg7 {[%emt 0:00:06]} h2+ {[%emt 0:00:11]} 26. Kh1 {
[%emt 0:00:02]} Rc1+ {[%emt 0:00:01]} 0-1

[Event "FIDE Women World Blitz 2021"]
[Site "Warsaw"]
[Date "2021.12.30"]
[Round "13.34"]
[White "Gaboyan, Susanna"]
[Black "Beydullayeva, Govhar"]
[Result "1-0"]
[ECO "A07"]
[WhiteElo "2253"]
[BlackElo "2278"]
[Annotator "NA"]
[PlyCount "85"]
[EventDate "2021.12.29"]
[EventType "swiss"]
[EventCountry "POL"]
[Tiebreak "Cut1 Buchholz"]
[SourceTitle "playchess.com"]
[Source "ChessBase"]
[SourceQuality "1"]
[TimeControl "180+2"]

1. Nf3 {[%emt 0:00:01]} Nf6 {[%emt 0:00:01]} 2. g3 {[%emt 0:00:01]} d5 {
[%emt 0:00:03]} 3. Bg2 {[%emt 0:00:02]} c6 {[%emt 0:00:00]} 4. O-O {[%emt 0:00:
02]} g6 {[%emt 0:00:00]} 5. d3 {[%emt 0:00:02]} Bg7 {[%emt 0:00:03]} 6. Nbd2 {
[%emt 0:00:01]} Nbd7 {[%emt 0:00:06]} 7. e4 {[%emt 0:00:01]} e5 {[%emt 0:00:06]
} 8. Qe2 {[%emt 0:00:31]} O-O {[%emt 0:00:03]} 9. exd5 {[%emt 0:00:05]} Nxd5 {
[%emt 0:00:07]} 10. Nc4 {[%emt 0:00:02]} Qc7 {[%emt 0:00:09]} 11. Re1 {[%emt 0:
00:17]} Re8 {[%emt 0:00:17]} 12. Ng5 {[%emt 0:00:05]} b5 {[%emt 0:00:12]} 13.
Ne3 {[%emt 0:00:03]} Bb7 {[%emt 0:00:13]} 14. c4 {[%emt 0:00:19]} N5f6 {
[%emt 0:00:34]} 15. Bd2 {[%emt 0:00:21]} h6 {[%emt 0:00:01]} 16. Ne4 {[%emt 0:
00:17]} Nxe4 {[%emt 0:00:05]} 17. dxe4 {[%emt 0:00:02]} bxc4 {[%emt 0:00:08]}
18. Qxc4 {[%emt 0:00:04]} Nb6 {[%emt 0:00:23]} 19. Qc2 {[%emt 0:00:03]} Rad8 {
[%emt 0:00:06]} 20. Rac1 {[%emt 0:00:10]} Rd7 {[%emt 0:00:33]} 21. Ba5 {
[%emt 0:00:04]} Red8 {[%emt 0:00:06]} 22. Nc4 {[%emt 0:00:10]} Rd4 {[%emt 0:00:
07]} 23. Qb3 {[%emt 0:00:02]} Qd7 {[%emt 0:00:19]} 24. Nxb6 {[%emt 0:00:08]}
axb6 {[%emt 0:00:01]} 25. Qxb6 {[%emt 0:00:10]} Ra8 {[%emt 0:00:04]} 26. Bc3 {
[%emt 0:00:04]} Rd6 {[%emt 0:00:02]} 27. a3 {[%emt 0:00:03]} g5 {[%emt 0:00:03]
} 28. Qc5 {[%emt 0:00:03]} Qd8 {[%emt 0:00:03]} 29. Bf3 {[%emt 0:00:04]} f6 {
[%emt 0:00:01]} 30. Red1 {[%emt 0:00:02]} Bf8 {[%emt 0:00:02]} 31. Qc4+ {
[%emt 0:00:02]} Kg7 {[%emt 0:00:01]} 32. Bh5 {[%emt 0:00:00]} Qc7 {[%emt 0:00:
01]} 33. Rxd6 {[%emt 0:00:00]} Bxd6 {[%emt 0:00:00]} 34. Rd1 {[%emt 0:00:00]}
Ba6 {[%emt 0:00:01]} 35. Qe6 {[%emt 0:00:00]} Rd8 {[%emt 0:00:01]} 36. Kg2 {
[%emt 0:00:00]} Bc8 {[%emt 0:00:01]} 37. Qc4 {[%emt 0:00:00]} Bb7 {[%emt 0:00:
06]} 38. Ba5 {[%emt 0:00:00]} Qxa5 {[%emt 0:00:02]} 39. Qf7+ {[%emt 0:00:00]}
Kh8 40. Qxf6+ Kh7 {[%emt 0:00:02]} 41. Bg6+ {[%emt 0:00:00]} Kg8 {[%emt 0:00:
00]} 42. Qf7+ {[%emt 0:00:00]} Kh8 {[%emt 0:00:01]} 43. Qh7# {[%emt 0:00:00]}
1-0

[Event "FIDE Women World Blitz 2021"]
[Site "Warsaw"]
[Date "2021.12.30"]
[Round "13.35"]
[White "Dylag, Emilia"]
[Black "Ovod, Evgenija"]
[Result "1/2-1/2"]
[ECO "D41"]
[WhiteElo "1863"]
[BlackElo "2366"]
[Annotator "NA"]
[PlyCount "93"]
[EventDate "2021.12.29"]
[EventType "swiss"]
[EventCountry "POL"]
[Tiebreak "Cut1 Buchholz"]
[SourceTitle "playchess.com"]
[Source "ChessBase"]
[SourceQuality "1"]
[TimeControl "180+2"]

1. d4 {[%emt 0:00:01]} d5 {[%emt 0:00:01]} 2. c4 {[%emt 0:00:01]} e6 {[%emt 0:
00:00]} 3. Nc3 {[%emt 0:00:01]} Nf6 {[%emt 0:00:01]} 4. cxd5 {[%emt 0:00:01]}
Nxd5 {[%emt 0:00:02]} 5. e4 {[%emt 0:00:02]} Nxc3 {[%emt 0:00:01]} 6. bxc3 {
[%emt 0:00:02]} c5 {[%emt 0:00:01]} 7. Nf3 {[%emt 0:00:05]} cxd4 {[%emt 0:00:
01]} 8. cxd4 {[%emt 0:00:01]} Bb4+ {[%emt 0:00:01]} 9. Bd2 {[%emt 0:00:02]}
Bxd2+ {[%emt 0:00:01]} 10. Qxd2 {[%emt 0:00:01]} O-O {[%emt 0:00:01]} 11. Bc4 {
[%emt 0:00:02]} Nd7 {[%emt 0:00:01]} 12. O-O {[%emt 0:00:08]} b6 {[%emt 0:00:
00]} 13. Rfe1 {[%emt 0:00:15]} Bb7 {[%emt 0:00:01]} 14. Rad1 {[%emt 0:00:10]}
Rc8 {[%emt 0:00:01]} 15. Bb3 {[%emt 0:00:01]} Re8 {[%emt 0:00:00]} 16. Qf4 {
[%emt 0:00:12]} Qc7 {[%emt 0:00:02]} 17. Qh4 {[%emt 0:00:10]} h6 {[%emt 0:00:
06]} 18. h3 {[%emt 0:00:12]} Nf6 {[%emt 0:00:07]} 19. d5 {[%emt 0:00:32]} exd5
{[%emt 0:00:02]} 20. e5 {[%emt 0:00:01]} Ne4 {[%emt 0:00:06]} 21. Bxd5 {
[%emt 0:00:16]} Nc3 {[%emt 0:00:19]} 22. Bxb7 {[%emt 0:00:17]} Qxb7 {[%emt 0:
00:01]} 23. Rd2 {[%emt 0:00:07]} b5 {[%emt 0:00:13]} 24. Qg4 {[%emt 0:00:10]}
Rc4 {[%emt 0:00:07]} 25. Qf5 {[%emt 0:00:18]} g6 {[%emt 0:01:12]} 26. Qd3 {
[%emt 0:00:21]} Kg7 {[%emt 0:00:17]} 27. Nd4 {[%emt 0:00:11]} Rc5 {[%emt 0:00:
23]} 28. e6 {[%emt 0:00:03]} f5 {[%emt 0:00:11]} 29. Qe3 {[%emt 0:00:01]} Ne4 {
[%emt 0:00:05]} 30. Rb2 {[%emt 0:00:02]} Rd5 {[%emt 0:00:08]} 31. f3 {[%emt 0:
00:03]} Nf6 {[%emt 0:00:02]} 32. Rc1 {[%emt 0:00:05]} a6 {[%emt 0:00:07]} 33.
Rbc2 {[%emt 0:00:01]} Re7 {[%emt 0:00:03]} 34. Rc6 {[%emt 0:00:03]} Qa7 {
[%emt 0:00:05]} 35. Rd1 {[%emt 0:00:04]} a5 {[%emt 0:00:10]} 36. Kh1 {[%emt 0:
00:01]} b4 {[%emt 0:00:03]} 37. Qg1 {[%emt 0:00:06]} a4 {[%emt 0:00:03]} 38.
Nc2 {[%emt 0:00:05]} Qxg1+ {[%emt 0:00:04]} 39. Rxg1 {[%emt 0:00:01]} b3 {
[%emt 0:00:03]} 40. axb3 {[%emt 0:00:01]} axb3 {[%emt 0:00:01]} 41. Ne3 {
[%emt 0:00:00]} Re5 {[%emt 0:00:04]} 42. Nc4 {[%emt 0:00:01]} R5xe6 {[%emt 0:
00:01]} 43. Rxe6 {[%emt 0:00:02]} Rxe6 {[%emt 0:00:01]} 44. Rb1 {[%emt 0:00:01]
} Rc6 {[%emt 0:00:03]} 45. Na5 {[%emt 0:00:00]} Rb6 {[%emt 0:00:03]} 46. Rxb3 {
[%emt 0:00:02]} Rxb3 {[%emt 0:00:02]} 47. Nxb3 {[%emt 0:00:01]} 1/2-1/2

[Event "FIDE Women World Blitz 2021"]
[Site "Warsaw"]
[Date "2021.12.30"]
[Round "13.36"]
[White "Dworakowska, Joanna"]
[Black "Nur-Mukhametova, Alisa"]
[Result "1-0"]
[ECO "B30"]
[WhiteElo "2228"]
[BlackElo "2225"]
[Annotator "NA"]
[PlyCount "119"]
[EventDate "2021.12.29"]
[EventType "swiss"]
[EventCountry "POL"]
[Tiebreak "Cut1 Buchholz"]
[SourceTitle "playchess.com"]
[Source "ChessBase"]
[SourceQuality "1"]
[TimeControl "180+2"]

1. e4 {[%emt 0:00:01]} c5 {[%emt 0:00:07]} 2. Nf3 {[%emt 0:00:01]} Nc6 {
[%emt 0:00:03]} 3. g3 {[%emt 0:00:01]} Nf6 {[%emt 0:00:07]} 4. d3 {[%emt 0:00:
06]} d5 {[%emt 0:00:06]} 5. e5 {[%emt 0:00:04]} Nd7 {[%emt 0:00:10]} 6. Qe2 {
[%emt 0:00:02]} Qc7 {[%emt 0:00:32]} 7. Bf4 {[%emt 0:00:23]} e6 {[%emt 0:00:01]
} 8. h4 {[%emt 0:00:07]} b5 {[%emt 0:00:30]} 9. Bh3 {[%emt 0:00:12]} Bb7 {
[%emt 0:00:10]} 10. O-O {[%emt 0:00:06]} h6 {[%emt 0:00:17]} 11. Nc3 {[%emt 0:
00:02]} a6 {[%emt 0:00:07]} 12. Nxd5 {[%emt 0:00:06]} exd5 {[%emt 0:00:36]} 13.
e6 {[%emt 0:00:02]} Bd6 {[%emt 0:00:07]} 14. exd7+ {[%emt 0:00:12]} Kf8 {
[%emt 0:00:01]} 15. Rfe1 {[%emt 0:00:14]} g6 {[%emt 0:00:21]} 16. Ne5 {[%emt 0:
01:15]} Nxe5 {[%emt 0:00:07]} 17. Bxe5 {[%emt 0:00:02]} Bxe5 {[%emt 0:00:01]}
18. Qxe5 {[%emt 0:00:02]} Qxe5 {[%emt 0:00:02]} 19. Rxe5 {[%emt 0:00:01]} Kg7 {
[%emt 0:00:07]} 20. Rae1 {[%emt 0:00:02]} Rad8 {[%emt 0:00:05]} 21. Re7 {
[%emt 0:00:10]} Kf6 {[%emt 0:00:03]} 22. Re8 {[%emt 0:00:02]} Bc6 {[%emt 0:00:
02]} 23. R8e6+ {[%emt 0:00:07]} fxe6 {[%emt 0:00:02]} 24. Rxe6+ {[%emt 0:00:01]
} Kg7 {[%emt 0:00:01]} 25. Rxc6 {[%emt 0:00:01]} c4 {[%emt 0:00:03]} 26. d4 {
[%emt 0:00:01]} Rhf8 {[%emt 0:00:01]} 27. Rc5 {[%emt 0:00:05]} Rf7 {[%emt 0:00:
03]} 28. Rxd5 {[%emt 0:00:02]} Re7 {[%emt 0:00:01]} 29. Kf1 {[%emt 0:00:01]}
Kf6 {[%emt 0:00:03]} 30. Rd6+ {[%emt 0:00:02]} Kg7 {[%emt 0:00:02]} 31. Rxa6 {
[%emt 0:00:03]} Rf7 {[%emt 0:00:03]} 32. Rb6 {[%emt 0:00:07]} Rf6 {[%emt 0:00:
02]} 33. Rxb5 {[%emt 0:00:02]} Ra6 {[%emt 0:00:01]} 34. a3 {[%emt 0:00:01]} Rd6
{[%emt 0:00:00]} 35. c3 {[%emt 0:00:02]} Kf7 {[%emt 0:00:03]} 36. Ke2 {[%emt 0:
00:06]} Ke7 {[%emt 0:00:01]} 37. Rb7 {[%emt 0:00:02]} Rf6 {[%emt 0:00:03]} 38.
f4 {[%emt 0:00:02]} Ra6 {[%emt 0:00:02]} 39. Kd2 {[%emt 0:00:03]} Rc6 {[%emt 0:
00:02]} 40. Rb4 {[%emt 0:00:03]} Kd6 {[%emt 0:00:02]} 41. Rb7 {[%emt 0:00:03]}
Ke7 {[%emt 0:00:02]} 42. a4 {[%emt 0:00:02]} Ra6 {[%emt 0:00:03]} 43. Rb4 {
[%emt 0:00:02]} Rc6 {[%emt 0:00:00]} 44. Ke3 {[%emt 0:00:05]} Ra8 {[%emt 0:00:
03]} 45. d5 {[%emt 0:00:02]} Rca6 {[%emt 0:00:04]} 46. Kd4 {[%emt 0:00:04]}
Rxa4 {[%emt 0:00:01]} 47. d6+ {[%emt 0:00:03]} Kd8 {[%emt 0:00:03]} 48. Rxc4 {
[%emt 0:00:02]} Rxc4+ {[%emt 0:00:01]} 49. Kxc4 {[%emt 0:00:01]} Ra6 {[%emt 0:
00:01]} 50. Kd5 {[%emt 0:00:03]} Ra5+ {[%emt 0:00:01]} 51. Ke6 {[%emt 0:00:01]}
Ra2 {[%emt 0:00:03]} 52. c4 {[%emt 0:00:06]} Rxb2 {[%emt 0:00:02]} 53. c5 {
[%emt 0:00:01]} Rc2 {[%emt 0:00:02]} 54. Kd5 {[%emt 0:00:01]} Rd2+ {[%emt 0:00:
02]} 55. Kc6 {[%emt 0:00:01]} Rh2 {[%emt 0:00:01]} 56. Bf1 {[%emt 0:00:02]} Rf2
{[%emt 0:00:03]} 57. Bb5 {[%emt 0:00:01]} Rf3 {[%emt 0:00:02]} 58. Kb7 {
[%emt 0:00:01]} Rb3 {[%emt 0:00:02]} 59. Kb6 {[%emt 0:00:01]} Rxg3 {[%emt 0:00:
03]} 60. c6 {[%emt 0:00:01]} 1-0